lending/lending_fUSD_20240705
["ID","MTS","AMOUNT","RATE_DAILY","PERIOD"]
[331224127,1720140669226,-500.0,0.00021917,4]
[331224128,1720140669235,-500.0,0.00021917,4]
[331224129,1720140669245,-500.0,0.00021917,4]
[331224130,1720140669254,-500.0,0.00021917,4]
[331224131,1720140669264,-500.0,0.00021917,4]
[331224132,1720140669273,-504.79589237,0.00021917,4]
[331224133,1720140669283,-500.0,0.00021917,4]
[331224134,1720140669292,-500.0,0.00021917,4]
[331224135,1720140669302,-500.0,0.00021917,4]
[331224136,1720140669311,-500.0,0.00021917,4]
[331224137,1720140669320,-667.43,0.00021917,4]
[331224138,1720140669330,-500.0,0.00021917,4]
[331224139,1720140669339,-500.0,0.00021917,4]
[331224140,1720140669348,-500.0,0.00021917,4]
[331224141,1720140669358,-667.43,0.00021917,4]
[331224142,1720140669367,-500.0,0.00021917,4]
[331224143,1720140669376,-515.44121246,0.00021917,4]
[331224144,1720140669386,-500.0,0.00021917,4]
[331224145,1720140669395,-382.52,0.00021917,4]
[331224146,1720140669404,-498.99,0.00021917,4]
[331224147,1720140669414,-732.21,0.00021917,4]
[331224148,1720140669423,-667.43,0.00021917,4]
[331224149,1720140669433,-732.21,0.00021917,4]
[331224150,1720140669445,-667.43,0.00021917,4]
[331224151,1720140669456,-500.0,0.00021917,4]
[331224152,1720140669466,-732.21,0.00021917,4]
[331224153,1720140669475,-500.0,0.00021917,4]
[331224154,1720140669484,-667.43,0.00021917,4]
[331224155,1720140669500,-500.0,0.00021917,4]
[331224156,1720140669510,-500.0,0.00021917,4]
[331224157,1720140669520,-500.0,0.00021917,4]
[331224158,1720140669530,-1307.15,0.00021917,4]
[331224159,1720140669541,-500.0,0.00021917,4]
[331224160,1720140669550,-500.0,0.00021917,4]
[331224161,1720140669560,-200.0,0.00021917,4]
[331224162,1720140669571,-1307.15,0.00021917,4]
[331224163,1720140669581,-500.0,0.00021917,4]
[331224164,1720140669591,-1307.15,0.00021917,4]
[331224165,1720140669600,-500.0,0.00021917,4]
[331224166,1720140669610,-1307.15,0.00021917,4]
[331224167,1720140669620,-1307.15,0.00021917,4]
[331224168,1720140669630,-500.0,0.00021917,4]
[331224169,1720140669639,-732.21,0.00021917,4]
[331224170,1720140669649,-1307.15,0.00021917,4]
[331224171,1720140669659,-500.0,0.00021917,4]
[331224172,1720140669668,-500.0,0.00021917,4]
[331224173,1720140669678,-1307.15,0.00021917,4]
[331224174,1720140669688,-500.0,0.00021917,4]
[331224175,1720140669701,-667.43,0.00021917,4]
[331224176,1720140669710,-500.0,0.00021917,4]
[331224177,1720140669720,-732.21,0.00021917,4]
[331224178,1720140669728,-667.43,0.00021917,4]
[331224179,1720140669738,-500.0,0.00021917,4]
[331224180,1720140669747,-500.0,0.00021917,4]
[331224181,1720140669756,-500.0,0.00021917,5]
[331224182,1720140669765,-500.0,0.00021917,4]
[331224183,1720140669775,-1307.15,0.00021917,4]
[331224184,1720140669784,-732.21,0.00021917,4]
[331224185,1720140669794,-367.52780383,0.00021917,4]
[331224186,1720140669804,-667.43,0.00021917,4]
[331224187,1720140669814,-500.0,0.00021917,4]
[331224188,1720140669823,-1307.15,0.00021917,4]
[331224189,1720140669833,-1307.15,0.00021917,4]
[331224190,1720140669843,-732.21,0.00021917,4]
[331224191,1720140669853,-1307.15,0.00021917,4]
[331224192,1720140669864,-667.43,0.00021917,4]
[331224193,1720140669874,-1307.15,0.00021917,4]
[331224194,1720140669884,-1307.15,0.00021917,4]
[331224195,1720140669894,-500.0,0.00021917,4]
[331224196,1720140669904,-1307.15,0.00021917,4]
[331224197,1720140669914,-1307.15,0.00021917,4]
[331224198,1720140669925,-500.0,0.00021917,4]
[331224199,1720140669935,-500.0,0.00021917,4]
[331224200,1720140669950,-1307.15,0.00021917,4]
[331224201,1720140669961,-500.0,0.00021917,4]
[331224202,1720140669972,-732.21,0.00021917,4]
[331224203,1720140669983,-1307.15,0.00021917,4]
[331224204,1720140669994,-667.43,0.00021917,4]
[331224205,1720140670005,-500.0,0.00021917,4]
[331224206,1720140670017,-1307.15,0.00021917,4]
[331224207,1720140670028,-732.21,0.00021917,4]
[331224208,1720140670039,-500.0,0.00021917,4]
[331224209,1720140670050,-667.43,0.00021917,4]
[331224210,1720140670060,-500.0,0.00021917,4]
[331224211,1720140670070,-1307.15,0.00021917,4]
[331224212,1720140670080,-732.21,0.00021917,4]
[331224213,1720140670090,-1307.15,0.00021917,4]
[331224214,1720140670100,-667.43,0.00021917,4]
[331224215,1720140670109,-672.97,0.00021917,4]
[331224216,1720140670119,-1307.15,0.00021917,4]
[331224217,1720140670128,-672.97,0.00021917,4]
[331224218,1720140670137,-1307.15,0.00021917,4]
[331224219,1720140670147,-732.21,0.00021917,4]
[331224220,1720140670156,-500.0,0.00021917,4]
[331224221,1720140670165,-667.43,0.00021917,4]
[331224222,1720140670176,-672.97,0.00021917,4]
[331224223,1720140670186,-1307.15,0.00021917,4]
[331224224,1720140670200,-502.21638008,0.00021917,4]
[331224225,1720140670210,-500.0,0.00021917,4]
[331224226,1720140670220,-500.0,0.00021917,4]
[331224227,1720140670229,-672.97,0.00021917,4]
[331224228,1720140670238,-1307.31192278,0.00021917,4]
[331224229,1720140670248,-500.0,0.00021917,4]
[331224230,1720140670258,-672.97,0.00021917,4]
[331224231,1720140670268,-672.97,0.00021917,4]
[331224232,1720140670277,-500.0,0.00021917,4]
[331224233,1720140670286,-732.21,0.00021917,4]
[331224234,1720140670296,-672.97,0.00021917,4]
[331224235,1720140670305,-500.0,0.00021917,4]
[331224236,1720140670315,-500.0,0.00021917,4]
[331224237,1720140670325,-667.43,0.00021917,4]
[331224238,1720140670335,-500.0,0.00021917,4]
[331224239,1720140670345,-672.97,0.00021917,4]
[331224240,1720140670355,-500.0,0.00021917,4]
[331224241,1720140670365,-500.0,0.00021917,4]
[331224242,1720140670375,-672.97,0.00021917,4]
[331224243,1720140670386,-500.0,0.00021917,4]
[331224244,1720140670396,-732.21,0.00021917,4]
[331224245,1720140670405,-500.0,0.00021917,4]
[331224246,1720140670415,-667.43,0.00021917,4]
[331224247,1720140670425,-500.0,0.00021917,4]
[331224248,1720140670434,-500.0,0.00021917,4]
[331224249,1720140670448,-672.97,0.00021917,4]
[331224250,1720140670457,-185.65,0.00021917,4]
[331224251,1720140670467,-500.0,0.00021917,4]
[331224252,1720140670476,-732.21,0.00021917,4]
[331224253,1720140670485,-500.0,0.00021917,4]
[331224254,1720140670498,-672.97,0.00021917,4]
[331224255,1720140670508,-500.0,0.00021917,4]
[331224256,1720140670520,-667.43,0.00021917,4]
[331224257,1720140670531,-500.0,0.00021917,4]
[331224258,1720140670541,-500.0,0.00021917,4]
[331224259,1720140670551,-672.97,0.00021917,4]
[331224260,1720140670561,-500.0,0.00021917,4]
[331224261,1720140670571,-500.0,0.00021917,4]
[331224262,1720140670581,-500.0,0.00021917,4]
[331224263,1720140670591,-500.0,0.00021917,4]
[331224264,1720140670601,-732.21,0.00021917,4]
[331224265,1720140670611,-672.97,0.00021917,4]
[331224266,1720140670620,-500.0,0.00021917,4]
[331224267,1720140670630,-500.0,0.00021917,4]
[331224268,1720140670639,-554.86,0.00021917,4]
[331224269,1720140670649,-500.0,0.00021917,4]
[331224270,1720140670659,-500.0,0.00021917,4]
[331224271,1720140670668,-672.97,0.00021917,4]
[331224272,1720140670677,-732.21,0.00021917,4]
[331224273,1720140670687,-500.0,0.00021917,4]
[331224274,1720140670699,-500.0,0.00021917,4]
[331224275,1720140670708,-500.0,0.00021917,4]
[331224276,1720140670717,-672.97,0.00021917,4]
[331224277,1720140670727,-500.0,0.00021917,4]
[331224278,1720140670736,-500.0,0.00021917,4]
[331224279,1720140670751,-500.0,0.00021917,4]
[331224280,1720140670760,-500.0,0.00021917,4]
[331224281,1720140670770,-672.97,0.00021917,4]
[331224282,1720140670780,-500.0,0.00021917,4]
[331224283,1720140670789,-604.86124282,0.00021917,4]
[331224284,1720140670798,-672.97,0.00021917,4]
[331224285,1720140670807,-500.0,0.00021917,4]
[331224286,1720140670816,-500.0,0.00021917,4]
[331224287,1720140670825,-672.97,0.00021917,4]
[331224288,1720140670834,-500.0,0.00021917,4]
[331224289,1720140670843,-500.0,0.00021917,4]
[331224290,1720140670852,-672.97,0.00021917,4]
[331224291,1720140670862,-500.0,0.00021917,4]
[331224292,1720140670874,-500.0,0.00021917,4]
[331224293,1720140670883,-672.97,0.00021917,4]
[331224294,1720140670892,-500.0,0.00021917,4]
[331224295,1720140670902,-500.0,0.00021917,4]
[331224296,1720140670911,-500.0,0.00021917,4]
[331224297,1720140670920,-500.0,0.00021917,4]
[331224298,1720140670931,-672.97,0.00021917,4]
[331224299,1720140670941,-500.0,0.00021917,4]
[331224300,1720140670957,-500.0,0.00021917,4]
[331224301,1720140670967,-500.0,0.00021917,4]
[331224302,1720140670977,-672.97,0.00021917,4]
[331224303,1720140670986,-500.0,0.00021917,4]
[331224304,1720140670996,-500.0,0.00021917,4]
[331224305,1720140671007,-455.93521448,0.00021917,4]
[331224306,1720140671016,-500.0,0.00021917,4]
[331224307,1720140671027,-672.97,0.00021917,4]
[331224308,1720140671037,-580.37,0.00021917,4]
[331224309,1720140671047,-500.0,0.00021917,4]
[331224310,1720140671057,-500.0,0.00021917,4]
[331224311,1720140671066,-673.12,0.00021917,4]
[331224312,1720140671076,-529.72375024,0.00021917,4]
[331224313,1720140671085,-371.38,0.00021917,4]
[331224314,1720140671095,-500.0,0.00021917,4]
[331224315,1720140671104,-500.0,0.00021917,4]
[331224316,1720140671113,-500.0,0.00021917,4]
[331224317,1720140671123,-500.0,0.00021917,4]
[331224318,1720140671133,-500.0,0.00021917,4]
[331224319,1720140671142,-500.0,0.00021917,4]
[331224320,1720140671151,-500.0,0.00021917,4]
[331224321,1720140671160,-599.13192019,0.00021917,4]
[331224322,1720140671170,-500.0,0.00021917,4]
[331224323,1720140671180,-235.83378272,0.00021917,4]
[331224324,1720140671189,-151.0,0.00021917,2]
[331224325,1720140671207,-500.0,0.00021917,4]
[331224326,1720140671217,-500.0,0.00021917,4]
[331224327,1720140671226,-500.0,0.00021917,4]
[331224328,1720140671236,-151.0,0.00021917,2]
[331224329,1720140671247,-500.0,0.00021917,4]
[331224330,1720140671257,-500.0,0.00021917,4]
[331224331,1720140671266,-500.0,0.00021917,4]
[331224332,1720140671275,-151.0,0.00021917,2]
[331224333,1720140671285,-500.0,0.00021917,4]
[331224334,1720140671294,-500.0,0.00021917,4]
[331224335,1720140671304,-500.0,0.00021917,4]
[331224336,1720140671313,-501.26457413,0.00021917,4]
[331224337,1720140671323,-151.0,0.00021917,2]
[331224338,1720140671332,-500.0,0.00021917,4]
[331224339,1720140671341,-1047.56,0.00021917,4]
[331224340,1720140671350,-500.0,0.00021917,4]
[331224341,1720140671359,-500.0,0.00021917,4]
[331224342,1720140671369,-399.56,0.00021917,4]
[331224343,1720140671378,-151.0,0.00021917,2]
[331224344,1720140671387,-500.0,0.00021917,4]
[331224345,1720140671396,-895.23050624,0.00021917,4]
[331224346,1720140671821,-152.32949376,0.00021917,4]
[331224347,1720140671830,-500.0,0.00021917,4]
[331224348,1720140671840,-500.0,0.00021917,4]
[331224349,1720140671849,-151.0,0.00021917,2]
[331224350,1720140671859,-618.67,0.00021917,4]
[331224351,1720140671868,-1047.56,0.00021917,4]
[331224352,1720140671878,-500.0,0.00021917,4]
[331224353,1720140671887,-716.8,0.00021917,4]
[331224354,1720140671897,-151.0,0.00021917,2]
[331224355,1720140671906,-1047.56,0.00021917,4]
[331224356,1720140671915,-716.8,0.00021917,4]
[331224357,1720140671925,-151.0,0.00021917,2]
[331224358,1720140671935,-1047.56,0.00021917,4]
[331224359,1720140671952,-500.0,0.00021917,4]
[331224360,1720140671961,-716.8,0.00021917,4]
[331224361,1720140671970,-1047.56,0.00021917,4]
[331224362,1720140671979,-1007.51307958,0.00021917,4]
[331224363,1720140671988,-500.0,0.00021917,4]
[331224364,1720140671998,-1047.56,0.00021917,4]
[331224365,1720140672007,-716.8,0.00021917,4]
[331224366,1720140672016,-500.0,0.00021917,4]
[331224367,1720140672026,-500.0,0.00021917,4]
[331224368,1720140672036,-1047.56,0.00021917,4]
[331224369,1720140672046,-716.8,0.00021917,4]
[331224370,1720140672056,-500.0,0.00021917,4]
[331224371,1720140672066,-1047.56,0.00021917,4]
[331224372,1720140672076,-156.12742666,0.00021917,4]
[331224373,1720140672092,-459.4508895,0.00021917,4]
[331224374,1720140672105,-101.22168384,0.00021917,4]
[331224375,1720140672116,-248.77831116,0.00021917,4]
[331224376,1720140672136,-251.22168884,0.00021917,4]
[331224377,1720140672147,-1047.56,0.00021917,4]
[331224378,1720140672158,-716.8,0.00021917,4]
[331224379,1720140672168,-50.92184317,0.00021917,4]
[331224380,1720140672181,-665.87815683,0.00021917,4]
[331224381,1720140672191,-296.78181791,0.00021917,4]
[331224382,1720140672211,-750.77818209,0.00021917,4]
[331224383,1720140672220,-716.8,0.00021917,4]
[331224384,1720140672230,-1047.56,0.00021917,4]
[331224385,1720140672239,-355.89590881,0.00021917,4]
[331224386,1720140672252,-144.10409119,0.00021917,4]
[331224387,1720140672262,-359.6211625,0.00021917,4]
[331224388,1720140935996,20250.0,0.00031621,30]
[331224389,1720141062634,191.0,0.00031563,30]
[331224391,1720141198590,1398.95077001,0.00011199,2]
[331224393,1720141252775,14085.9185846,0.00011199,2]
[331224394,1720141278555,546.90818749,0.00011199,2]
[331224395,1720141287329,229.52837264,0.00011199,2]
[331224396,1720141302175,290.43605371,0.00011199,2]
[331224397,1720141488989,14175.81148866,0.00011199,2]
[331224399,1720141625579,1058.65175085,0.00011199,2]
[331224400,1720141675669,15433.33883135,0.00011199,2]
[331224563,1720141772186,2375.09157428,0.00011199,2]
[331224570,1720141832448,-202.01806079,0.00012314,2]
[331224571,1720141832458,-297.74410483,0.00013128,2]
[331224572,1720141832467,-263.64797804,0.00013128,2]
[331224573,1720141832477,-297.74410483,0.00013128,2]
[331224574,1720141832486,-5386.28050123,0.00013128,2]
[331224575,1720141832496,-365.90396338,0.00013128,2]
[331224576,1720141832505,-15433.33883135,0.00013128,2]
[331224577,1720141832515,-300.0,0.00013471,2]
[331224578,1720141832524,-300.0,0.00013471,2]
[331224579,1720141832534,-1338.87494783,0.00013472,2]
[331224580,1720141832544,-2720.66141359,0.00013472,2]
[331224581,1720141832553,-888.96784191,0.00013516,2]
[331224582,1720141832562,-648.73253098,0.00013543,2]
[331224583,1720141832571,-155.0,0.00013543,2]
[331224584,1720141832582,-271.60383587,0.00013543,2]
[331224585,1720141832592,-195.9976809,0.00013574,2]
[331224586,1720141832601,-155.34104736,0.00013574,2]
[331224587,1720141832610,-3023.94018324,0.00013574,2]
[331224588,1720141832620,-173.76628846,0.00013574,2]
[331224589,1720141832634,-242.12431802,0.00013574,2]
[331224590,1720141832644,-2272.27912863,0.00013574,2]
[331224591,1720141832653,-303.57548573,0.00013574,2]
[331224592,1720141832663,-492.03534512,0.00013574,2]
[331224593,1720141832672,-717.8044979,0.00013574,2]
[331224594,1720141832681,-190.40913489,0.00013574,2]
[331224595,1720141832691,-155.20249672,0.00013574,2]
[331224596,1720141832700,-254.8460516,0.00013574,2]
[331224597,1720141832709,-206.49717134,0.00013574,2]
[331224598,1720141832719,-217.81272639,0.00013574,2]
[331224599,1720141832728,-501.16401292,0.00013574,2]
[331224600,1720141832737,-2377.03282187,0.00013574,2]
[331224601,1720141832747,-155.88395485,0.00013574,2]
[331224602,1720141832757,-1012.62731708,0.00013736,2]
[331224603,1720141832766,-821.27785739,0.00013759,2]
[331224604,1720141832776,-173.3514,0.000138,2]
[331224605,1720141832785,-661.4319,0.000139,2]
[331224606,1720141832794,-577.5197,0.000139,2]
[331224607,1720141832804,-227.14852012,0.00013989,2]
[331224608,1720141832813,-273.18933358,0.00013999,2]
[331224609,1720141832822,-294.79,0.00014393,2]
[331224610,1720141832831,-420.0,0.00014818,2]
[331224611,1720141832841,-2669.0,0.000151,2]
[331224612,1720141832851,-280.0,0.000163,2]
[331224613,1720141832860,-477.682,0.00016769,2]
[331224614,1720141832874,-191263.57779249,0.00016808,2]
[331224615,1720141832885,-611.31,0.00017025,2]
[331224616,1720141832895,-412.96604001,0.00018,2]
[331224617,1720141832904,-2829.21023985,0.00018432,2]
[331224618,1720141832913,-250.0,0.00018604,2]
[331224619,1720141832924,-2000.0,0.00018778,3]
[331224620,1720141833161,-172.57,0.00018795,2]
[331224621,1720141833173,-150.0,0.00018795,2]
[331224622,1720141833184,-286.49,0.00018808,2]
[331224623,1720141833195,-250.0,0.00018817,2]
[331224624,1720141833204,-1000.0,0.00018836,2]
[331224625,1720141833213,-957.05098293,0.00018999,2]
[331224626,1720141833222,-155.0,0.00019069,2]
[331224627,1720141833232,-348.02,0.00019092,2]
[331224628,1720141833242,-1455.0,0.00019095,2]
[331224629,1720141833251,-250.0,0.00019178,2]
[331224630,1720141833260,-161.25,0.00019282,30]
[331224631,1720141833270,-611.31,0.00019289,2]
[331224632,1720141833280,-305.56742136,0.00019299,2]
[331224633,1720141833289,-304.39838294,0.0001935,2]
[331224634,1720141833298,-253.90432169,0.0001935,2]
[331224635,1720141833308,-368.88937692,0.00019352,2]
[331224636,1720141833317,-19770.65246914,0.000196,2]
[331224637,1720141833327,-528.56417589,0.00019725,2]
[331224638,1720141833337,-155.0,0.00019863,2]
[331224639,1720141833346,-255.56653683,0.00019899,2]
[331224640,1720141833355,-544.69316985,0.0001999,2]
[331224641,1720141833365,-271.93089622,0.0002,2]
[331224642,1720141833378,-2405.14949562,0.0002,2]
[331224643,1720141833388,-11436.52330545,0.0002,3]
[331224644,1720141833398,-1274.88625925,0.0002,2]
[331224645,1720141833407,-188.22778166,0.0002,2]
[331224646,1720141833417,-155.27427709,0.0002,3]
[331224647,1720141833426,-155.0,0.0002,2]
[331224648,1720141833436,-2005.83489757,0.0002008,2]
[331224649,1720141833445,-5111.60732436,0.00020438,2]
[331224650,1720141833454,-150.0,0.00020645,2]
[331224651,1720141833464,-306.35,0.00020645,2]
[331224652,1720141833473,-150.0,0.00020645,2]
[331224653,1720141833484,-318.6,0.00020645,2]
[331224654,1720141833494,-150.0,0.00020645,2]
[331224655,1720141833504,-150.0,0.00020645,2]
[331224656,1720141833514,-150.0,0.00020645,2]
[331224657,1720141833523,-1814.93563644,0.000208,2]
[331224658,1720141833533,-1834.427294,0.00021018,2]
[331224659,1720141833542,-165.716323,0.00021018,2]
[331224660,1720141833552,-1000.0,0.00021191,2]
[331224661,1720141833562,-5111.60732436,0.00021255,2]
[331224662,1720141833571,-1834.427294,0.0002128,2]
[331224663,1720141833581,-180.0,0.00021397,2]
[331224664,1720141833590,-150.0,0.00021467,2]
[331224665,1720141833609,-150.0,0.00021467,2]
[331224666,1720141833620,-156.87,0.00021467,2]
[331224667,1720141833634,-150.0,0.00021467,2]
[331224668,1720141833644,-150.0,0.00021467,2]
[331224669,1720141833653,-151.74,0.00021467,2]
[331224670,1720141833663,-150.0,0.00021467,2]
[331224671,1720141833672,-528.5,0.00021467,2]
[331224672,1720141833682,-150.0,0.00021467,2]
[331224673,1720141833694,-715.46,0.00021467,2]
[331224674,1720141833705,-150.0,0.00021467,2]
[331224675,1720141833714,-164.87,0.00021467,2]
[331224676,1720141833725,-164.87,0.00021467,2]
[331224677,1720141833736,-164.87,0.00021467,2]
[331224678,1720141833746,-528.5,0.00021467,2]
[331224679,1720141833756,-528.5,0.00021467,2]
[331224680,1720141833766,-528.5,0.00021467,2]
[331224681,1720141833776,-528.5,0.00021467,2]
[331224682,1720141833786,-155.91,0.00021467,2]
[331224683,1720141833796,-528.5,0.00021467,2]
[331224684,1720141833806,-150.0,0.00021467,2]
[331224685,1720141833816,-226.3096087,0.00021478,2]
[331224686,1720141833825,-348.02,0.00021478,2]
[331224687,1720141833836,-1834.427294,0.00021543,2]
[331224688,1720141833845,-165.716323,0.00021543,2]
[331224689,1720141833855,-611.31,0.00021553,2]
[331224690,1720141833866,-373.58,0.00021644,2]
[331224691,1720141833879,-162.4,0.00021644,2]
[331224692,1720141833891,-848.76697,0.000217,2]
[331224693,1720141833903,-22431.7917,0.00021717,2]
[331224694,1720141833914,-747.90426537,0.00021717,2]
[331224695,1720141833923,-500.0,0.00021742,2]
[331224696,1720141833933,-200.0,0.00021742,2]
[331224697,1720141833943,-20000.0,0.000218,2]
[331224698,1720141833954,-324.11627714,0.00021804,2]
[331224699,1720141833971,-1834.427294,0.00021806,2]
[331224700,1720141833981,-8698.61047074,0.00021807,3]
[331224701,1720141833991,-151.6,0.00021807,2]
[331224702,1720141834001,-205.2034579,0.00021807,2]
[331224703,1720141834011,-220.21,0.00021808,2]
[331224704,1720141834021,-166.88598868,0.00021809,2]
[331224705,1720141834032,-747.90426532,0.00021815,2]
[331224706,1720141834042,-1077.12417172,0.00021816,5]
[331224707,1720141834054,-216.0,0.00021817,2]
[331224708,1720141834065,-99964.4175416,0.00021817,2]
[331224723,1720141838744,-506.48766755,0.00013574,2]
[331224726,1720141838758,-1249.18851562,0.00013574,2]
[331224728,1720141838768,-166.82438842,0.00013574,2]
[331224740,1720141839176,-8040.43980886,0.00013574,2]
[331224742,1720141839189,-2208.23057587,0.00013574,2]
[331224745,1720141839202,-2020.5693902,0.00013574,2]
[331224747,1720141839212,-204.58,0.00020907,2]
[331224749,1720141839223,-2068.70615802,0.00021817,2]
[331224911,1720141841016,-2071.79108668,0.00021717,2]
[331224913,1720141841028,-12.15711332,0.00021717,2]
[331224915,1720141841038,-561.2224267,0.00021817,2]
[331224917,1720141841049,-525.78909216,0.00021817,2]
[331224919,1720141841060,-386.51430034,0.00021817,2]
[331224922,1720141841072,-1724.46577135,0.00021817,2]
[331224961,1720141841438,-283.33851305,0.00021817,2]
[331224963,1720141841450,-2809.89847193,0.00021817,2]
[331225211,1720141843964,-28796.11791675,0.00021817,2]
[331225230,1720141844159,-543.27479091,0.00021817,2]
[331225232,1720141844171,-6319.58947999,0.00021817,2]
[331225257,1720141844432,-356.26716225,0.00013574,2]
[331225259,1720141844442,-12553.73283775,0.00021817,2]
[331225511,1720141847033,-250.09736176,0.00013574,2]
[331225514,1720141847046,-47.09761605,0.00013574,2]
[331225516,1720141847055,-3722.08806665,0.00021817,2]
[331225518,1720141847068,-38008.16273534,0.00021817,2]
[331225521,1720141847080,-551.42648213,0.00021817,2]
[331225523,1720141847092,-1082.16293103,0.00021817,2]
[331225525,1720141847103,-6134.45000001,0.00021817,2]
[331225527,1720141847115,-575.75714518,0.00021817,2]
[331225530,1720141847126,-313.99159286,0.00021817,2]
[331225804,1720142043566,60298.58659879,0.00031563,120]
[331225805,1720142061396,638.0,0.00031573,30]
[331225806,1720142074552,2223.88726191,0.00031573,120]
[331225935,1720143022839,1165.48100542,0.00031575,120]
[331225936,1720143035167,1522.45609378,0.00026,120]
[331225961,1720143052245,-408.85640308,0.00016172,2]
[331225968,1720143052261,-4357.50514923,0.00016172,2]
[331225972,1720143052273,-301.02081451,0.00016172,2]
[331225980,1720143052285,-1240.78981057,0.00016172,2]
[331225984,1720143052299,-2876.56146053,0.00016172,2]
[331225989,1720143052308,-621.5,0.00017244,2]
[331225993,1720143052318,-300.0,0.00017259,2]
[331225996,1720143052327,-5386.87256081,0.00017444,2]
[331225999,1720143052337,-543.3375049,0.00017707,2]
[331226002,1720143052346,-1648.0,0.0001783,2]
[331226005,1720143052355,-361.04937862,0.0001783,2]
[331226009,1720143052366,-484.29211093,0.0001783,2]
[331226013,1720143052380,-429.82451045,0.0001783,2]
[331226017,1720143052390,-158.22888849,0.00018835,2]
[331226025,1720143052411,-155.45353951,0.00018864,2]
[331226030,1720143052421,-227.14852012,0.00018899,2]
[331226034,1720143052431,-227.14852012,0.00018899,2]
[331226037,1720143052441,-277.86700626,0.00018899,2]
[331226042,1720143052459,-1250.0,0.00019,2]
[331226046,1720143052469,-426.51,0.00019,2]
[331226050,1720143052479,-499.99,0.00019,2]
[331226054,1720143052488,-830.93155628,0.0001905,2]
[331226058,1720143052502,-23069.06844372,0.0001905,2]
[331226061,1720143052513,-161.25,0.00019067,30]
[331226064,1720143052523,-999.99,0.00019069,2]
[331226067,1720143052533,-200.0,0.00019133,2]
[331226070,1720143052544,-250.0,0.00019136,2]
[331226073,1720143052555,-208.81,0.00019154,2]
[331226076,1720143052566,-250.0,0.00019154,2]
[331226081,1720143052578,-192.49332324,0.00019164,5]
[331226084,1720143052591,-306.30600001,0.00019164,5]
[331226087,1720143052605,-1001.20067675,0.00019164,5]
[331226090,1720143052615,-401.71,0.00019184,2]
[331226093,1720143052626,-2751.0,0.00019184,2]
[331226096,1720143052636,-182.08,0.00019186,2]
[331226099,1720143052646,-4650.2,0.00019192,2]
[331226102,1720143052656,-172.57,0.00019207,2]
[331226105,1720143052666,-369.30640051,0.00019229,2]
[331226109,1720143052679,-3816.76359949,0.00019229,2]
[331226113,1720143052690,-215.36487877,0.00019229,2]
[331226115,1720143052704,-250.0,0.00019272,2]
[331226117,1720143052714,-4936.81,0.00019352,2]
[331226119,1720143052724,-150.0,0.00019385,2]
[331226121,1720143052733,-155.0,0.00019389,2]
[331226123,1720143052743,-219.50626646,0.00019389,2]
[331226125,1720143052755,-1000.0,0.00019505,2]
[331226127,1720143052765,-621.5,0.00019508,2]
[331226129,1720143052776,-15061.588773,0.0002,2]
[331226131,1720143052785,-174.0,0.0002012,2]
[331226133,1720143052795,-172.38,0.00020231,2]
[331226135,1720143052805,-1054.49,0.00020645,2]
[331226137,1720143052815,-528.5,0.00020645,2]
[331226139,1720143052825,-1042.87,0.00020645,2]
[331226141,1720143052835,-180.0,0.00021397,2]